lending/lending_fUSD_20250224
["ID","MTS","AMOUNT","RATE_DAILY","PERIOD"]
[354329068,1740419444933,-1418049.66,0.00018,5]
[354329069,1740419444947,-212.221011,0.00018,2]
[354329070,1740419444961,-151.0,0.00018,2]
[354329071,1740419444975,-151.0,0.00018,2]
[354329072,1740419444989,-151.0,0.00018,2]
[354329073,1740419445004,-151.0,0.00018,2]
[354329074,1740419445018,-151.0,0.00018,2]
[354329075,1740419445033,-586.671707,0.00018,2]
[354329076,1740419445047,-151.0,0.00018,2]
[354329077,1740419445061,-151.0,0.00018,2]
[354329078,1740419445075,-151.0,0.00018,2]
[354329079,1740419445089,-151.0,0.00018,2]
[354329080,1740419445103,-151.0,0.00018,2]
[354329081,1740419445118,-151.0,0.00018,2]
[354329082,1740419445129,-151.0,0.00018,2]
[354329083,1740419445138,-151.0,0.00018,2]
[354329084,1740419445147,-151.0,0.00018,2]
[354329085,1740419445156,-151.0,0.00018,2]
[354329086,1740419445165,-151.0,0.00018,2]
[354329087,1740419445175,-187.359585,0.00018,2]
[354329088,1740419445184,-187.359585,0.00018,2]
[354329089,1740419445193,-151.0,0.00018,2]
[354329090,1740419445202,-151.0,0.00018,2]
[354329091,1740419445212,-151.0,0.00018,2]
[354329092,1740419445221,-151.0,0.00018,2]
[354329093,1740419445230,-151.831378,0.00018,2]
[354329094,1740419445239,-194.551977,0.00018,2]
[354329095,1740419445248,-194.551977,0.00018,2]
[354329096,1740419445525,-151.0,0.00018,2]
[354329097,1740419445547,-151.0,0.00018,2]
[354329098,1740419445572,-151.0,0.00018,2]
[354329099,1740419445581,-151.782184,0.00018,2]
[354329100,1740419445592,-151.0,0.00018,2]
[354329101,1740419445601,-151.0,0.00018,2]
[354329102,1740419445610,-151.0,0.00018,2]
[354329103,1740419445619,-151.0,0.00018,2]
[354329104,1740419445630,-151.0,0.00018,2]
[354329105,1740419445640,-151.0,0.00018,2]
[354329106,1740419445649,-151.0,0.00018,2]
[354329107,1740419445658,-151.0,0.00018,2]
[354329108,1740419445667,-151.0,0.00018,2]
[354329109,1740419445678,-151.0,0.00018,2]
[354329110,1740419445688,-151.0,0.00018,2]
[354329111,1740419445697,-151.0,0.00018,2]
[354329112,1740419445709,-151.0,0.00018,2]
[354329113,1740419445718,-312.393513,0.00018,2]
[354329114,1740419445727,-312.393513,0.00018,2]
[354329115,1740419445736,-312.393513,0.00018,2]
[354329116,1740419445745,-312.393513,0.00018,2]
[354329117,1740419445754,-162.561618,0.00018,2]
[354329118,1740419445763,-151.0,0.00018,2]
[354329119,1740419445773,-151.0,0.00018,2]
[354329120,1740419445782,-151.0,0.00018,2]
[354329121,1740419445791,-231.031672,0.00018,2]
[354329122,1740419445800,-151.0,0.00018,2]
[354329123,1740419445809,-151.0,0.00018,2]
[354329124,1740419445818,-261.788799,0.00018,2]
[354329125,1740419445827,-151.0,0.00018,2]
[354329126,1740419445836,-151.0,0.00018,2]
[354329127,1740419445846,-151.0,0.00018,2]
[354329128,1740419445855,-151.0,0.00018,2]
[354329129,1740419445865,-176.463417,0.00018,2]
[354329130,1740419445874,-151.0,0.00018,2]
[354329131,1740419445883,-151.0,0.00018,2]
[354329132,1740419445892,-164.410286,0.00018,2]
[354329133,1740419445902,-164.410286,0.00018,2]
[354329134,1740419445911,-176.463417,0.00018,2]
[354329135,1740419445921,-164.410286,0.00018,2]
[354329136,1740419445931,-164.410286,0.00018,2]
[354329137,1740419445940,-151.0,0.00018,2]
[354329138,1740419445949,-151.0,0.00018,2]
[354329139,1740419445959,-151.0,0.00018,2]
[354329140,1740419445968,-151.0,0.00018,2]
[354329141,1740419445978,-151.0,0.00018,2]
[354329142,1740419445988,-151.0,0.00018,2]
[354329143,1740419445997,-151.0,0.00018,2]
[354329144,1740419446008,-151.0,0.00018,2]
[354329145,1740419446017,-508.677672,0.00018,2]
[354329146,1740419446027,-508.677672,0.00018,2]
[354329147,1740419446036,-151.0,0.00018,2]
[354329148,1740419446045,-151.0,0.00018,2]
[354329149,1740419446054,-508.677672,0.00018,2]
[354329150,1740419446063,-508.677672,0.00018,2]
[354329151,1740419446073,-918.270686,0.00018,2]
[354329152,1740419446082,-918.270686,0.00018,2]
[354329153,1740419446091,-918.270686,0.00018,2]
[354329154,1740419446100,-918.270686,0.00018,2]
[354329155,1740419446110,-162.434691,0.00018,2]
[354329156,1740419446120,-151.0,0.00018,2]
[354329157,1740419446129,-151.0,0.00018,2]
[354329158,1740419446139,-151.0,0.00018,2]
[354329159,1740419446149,-151.0,0.00018,2]
[354329160,1740419446158,-151.0,0.00018,2]
[354329161,1740419446167,-151.0,0.00018,2]
[354329162,1740419446176,-184.185238,0.00018,2]
[354329163,1740419446185,-184.185238,0.00018,2]
[354329164,1740419446193,-184.185238,0.00018,2]
[354329165,1740419446201,-184.185238,0.00018,2]
[354329166,1740419446209,-744.129612,0.00018,2]
[354329167,1740419446217,-744.129612,0.00018,2]
[354329168,1740419446225,-151.0,0.00018,2]
[354329169,1740419446233,-151.0,0.00018,2]
[354329170,1740419446241,-151.0,0.00018,2]
[354329171,1740419446250,-151.0,0.00018,2]
[354329172,1740419446258,-151.0,0.00018,2]
[354329173,1740419446267,-151.0,0.00018,2]
[354329174,1740419446276,-229.613081,0.00018,2]
[354329175,1740419446285,-229.613081,0.00018,2]
[354329177,1740419446294,-171.8349,0.00018,2]
[354329179,1740419446303,-171.8349,0.00018,2]
[354329181,1740419446312,-200.0,0.00018082,2]
[354329183,1740419446321,-539.1,0.00018136,2]
[354329184,1740419446331,-539.1,0.00018273,2]
[354329186,1740419446340,-539.1,0.0001841,2]
[354329188,1740419446349,-539.1,0.00018547,2]
[354329189,1740419446358,-151.0,0.000186,2]
[354329190,1740419446367,-159.7,0.000186,2]
[354329191,1740419446376,-1000.0,0.00018632,3]
[354329192,1740419446385,-539.1,0.00018684,2]
[354329193,1740419446394,-155.3,0.00018695,2]
[354329194,1740419446403,-172.75444438,0.000187,5]
[354329195,1740419446411,-151.0,0.000187,2]
[354329196,1740419446420,-539.1,0.00018821,2]
[354329197,1740419446430,-4360.28144337,0.00018886,2]
[354329198,1740419446439,-1758.92257645,0.00018907,2]
[354329199,1740419446449,-539.1,0.00018958,2]
[354329200,1740419446459,-539.1,0.00019095,2]
[354329201,1740419446468,-1000.0,0.00019178,7]
[354329202,1740419446477,-539.1,0.00019232,2]
[354329203,1740419446486,-500.0,0.00019298,2]
[354329204,1740419446495,-539.1,0.00019369,2]
[354329205,1740419446504,-695.41,0.00019397,30]
[354329206,1740419446513,-500.0,0.00019398,2]
[354329207,1740419446522,-1000.0,0.00019452,7]
[354329208,1740419446532,-767.71,0.00019468,2]
[354329209,1740419446540,-539.1,0.00019506,2]
[354329210,1740419446550,-207.13291084,0.00019626,2]
[354329211,1740419446559,-539.1,0.00019643,2]
[354329212,1740419446568,-1582.10808622,0.0001967,2]
[354329213,1740419446577,-1582.1080861,0.0001967,2]
[354329214,1740419446586,-1000.0,0.00019726,7]
[354329215,1740419446596,-539.1,0.0001978,2]
[354329216,1740419446605,-394.71654899,0.000199,2]
[354329217,1740419446614,-1500.0,0.000199,7]
[354329218,1740419446623,-1226.88034,0.000199,2]
[354329219,1740419446633,-6233.99179027,0.000199,2]
[354329220,1740419446646,-539.1,0.00019917,2]
[354329221,1740419446656,-155.3,0.00019918,2]
[354329222,1740419446665,-2802.983145,0.0002,7]
[354329223,1740419446674,-1424.993007,0.0002,7]
[354329224,1740419446683,-37798.23492901,0.0002,15]
[354329226,1740419446692,-2000.0,0.0002,2]
[354329227,1740419446701,-151.0,0.0002,2]
[354329229,1740419446710,-151.530379,0.0002,2]
[354329230,1740419446721,-151.0,0.0002,2]
[354329231,1740419446730,-249.668806,0.0002,2]
[354329232,1740419446739,-249.668806,0.0002,2]
[354329233,1740419446749,-151.0,0.0002,2]
[354329234,1740419446758,-151.0,0.0002,2]
[354329235,1740419446766,-151.0,0.0002,2]
[354329236,1740419446775,-1826.99251725,0.0002,2]
[354329237,1740419446784,-1000.0,0.0002,7]
[354329238,1740419446793,-2042.706107,0.0002001,2]
[354329239,1740419446802,-539.1,0.00020054,2]
[354329240,1740419446811,-151.0,0.0002017,2]
[354329241,1740419446820,-4360.28144337,0.0002017,2]
[354329242,1740419446830,-1758.92257645,0.00020181,2]
[354329243,1740419446840,-539.1,0.00020191,2]
[354329244,1740419446849,-207.72,0.00020191,4]
[354329245,1740419446860,-1000.0,0.00020273,7]
[354329246,1740419446870,-230.38,0.00020305,120]
[354329247,1740419446879,-539.1,0.00020328,2]
[354329248,1740419446889,-539.1,0.00020465,2]
[354329249,1740419446898,-1000.0,0.00020547,7]
[354329250,1740419446907,-205.340716,0.00020548,2]
[354329251,1740419446916,-539.1,0.00020602,2]
[354329252,1740419446925,-706.91834895,0.0002063,120]
[354329253,1740419446935,-2329.0232016,0.00020657,2]
[354329254,1740419446944,-187.359585,0.00020658,2]
[354329255,1740419446954,-187.359585,0.00020658,2]
[354329256,1740419446963,-151.0,0.0002067,2]
[354329257,1740419446973,-151.204097,0.0002067,2]
[354329258,1740419446982,-151.0,0.0002067,2]
[354329259,1740419446991,-151.0,0.0002067,2]
[354329260,1740419447000,-151.0,0.0002067,2]
[354329261,1740419447009,-151.0,0.0002067,2]
[354329262,1740419447018,-151.0,0.0002067,2]
[354329263,1740419447028,-151.0,0.0002067,2]
[354329264,1740419447037,-151.0,0.0002067,2]
[354329265,1740419447047,-151.0,0.0002067,2]
[354329266,1740419447056,-249.668806,0.0002067,2]
[354329267,1740419447065,-249.668806,0.0002067,2]
[354329268,1740419447075,-249.668806,0.0002067,2]
[354329269,1740419447084,-249.668806,0.0002067,2]
[354329270,1740419447094,-249.668806,0.0002067,2]
[354329271,1740419447103,-249.668806,0.0002067,2]
[354329272,1740419447112,-249.668806,0.0002067,2]
[354329273,1740419447121,-249.668806,0.0002067,2]
[354329274,1740419447130,-249.668806,0.0002067,2]
[354329275,1740419447139,-249.668806,0.0002067,2]
[354329276,1740419447148,-151.0,0.0002067,2]
[354329277,1740419447157,-151.676017,0.0002067,2]
[354329278,1740419447166,-151.0,0.0002067,2]
[354329279,1740419447174,-151.0,0.0002067,2]
[354329280,1740419447184,-151.341277,0.0002067,2]
[354329281,1740419447193,-586.671707,0.0002067,2]
[354329282,1740419447202,-586.671707,0.0002067,2]
[354329283,1740419447211,-151.0,0.0002067,2]
[354329284,1740419447220,-151.0,0.0002067,2]
[354329285,1740419447229,-151.0,0.0002067,2]
[354329286,1740419447239,-151.0,0.0002067,2]
[354329287,1740419447247,-151.0,0.0002067,2]
[354329288,1740419447256,-151.0,0.0002067,2]
[354329289,1740419447265,-151.0,0.0002067,2]
[354329290,1740419447274,-151.0,0.0002067,2]
[354329291,1740419447283,-194.551977,0.0002067,2]
[354329292,1740419447292,-194.551977,0.0002067,2]
[354329293,1740419447301,-151.0,0.0002067,2]
[354329294,1740419447310,-151.0,0.0002067,2]
[354329295,1740419447319,-151.0,0.0002067,2]
[354329296,1740419447328,-151.0,0.0002067,2]
[354329297,1740419447338,-151.0,0.0002067,2]
[354329298,1740419447346,-151.0,0.0002067,2]
[354329299,1740419447355,-151.0,0.0002067,2]
[354329300,1740419447364,-152.057265,0.0002067,2]
[354329301,1740419447373,-262.007382,0.0002067,2]
[354329302,1740419447382,-151.0,0.0002067,2]
[354329303,1740419447391,-151.0,0.0002067,2]
[354329304,1740419447400,-195.65488,0.0002067,2]
[354329305,1740419447409,-151.0,0.0002067,2]
[354329306,1740419447418,-151.0,0.0002067,2]
[354329307,1740419447427,-151.0,0.0002067,2]
[354329308,1740419447436,-151.0,0.0002067,2]
[354329309,1740419447445,-151.0,0.0002067,2]
[354329310,1740419447454,-151.0,0.0002067,2]
[354329311,1740419447467,-151.0,0.0002067,2]
[354329312,1740419447476,-155.550213,0.0002067,2]
[354329313,1740419447485,-151.0,0.0002067,2]
[354329314,1740419447493,-151.0,0.0002067,2]
[354329315,1740419447502,-151.0,0.0002067,2]
[354329316,1740419447511,-151.0,0.0002067,2]
[354329317,1740419447520,-151.0,0.0002067,2]
[354329318,1740419447528,-151.0,0.0002067,2]
[354329319,1740419447537,-151.0,0.0002067,2]
[354329320,1740419447546,-151.0,0.0002067,2]
[354329321,1740419447555,-508.677672,0.0002067,2]
[354329322,1740419447564,-508.677672,0.0002067,2]
[354329323,1740419447573,-508.677672,0.0002067,2]
[354329324,1740419447582,-508.677672,0.0002067,2]
[354329325,1740419447591,-508.677672,0.0002067,2]
[354329326,1740419447601,-151.0,0.0002067,2]
[354329327,1740419447610,-151.0,0.0002067,2]
[354329328,1740419447619,-151.0,0.0002067,2]
[354329329,1740419447630,-201.655621,0.0002067,2]
[354329330,1740419447640,-508.677672,0.0002067,2]
[354329331,1740419447649,-508.677672,0.0002067,2]
[354329332,1740419447658,-508.677672,0.0002067,2]
[354329333,1740419447667,-508.677672,0.0002067,2]
[354329334,1740419447677,-508.677672,0.0002067,2]
[354329335,1740419447686,-918.270686,0.0002067,2]
[354329336,1740419447695,-918.270686,0.0002067,2]
[354329337,1740419447704,-918.270686,0.0002067,2]
[354329338,1740419447714,-918.270686,0.0002067,2]
[354329339,1740419447723,-918.270686,0.0002067,2]
[354329340,1740419447732,-918.270686,0.0002067,2]
[354329341,1740419447741,-918.270686,0.0002067,2]
[354329342,1740419447750,-918.270686,0.0002067,2]
[354329343,1740419447759,-918.270686,0.0002067,2]
[354329344,1740419447768,-918.270686,0.0002067,2]
[354329345,1740419447778,-151.0,0.0002067,2]
[354329346,1740419447787,-151.0,0.0002067,2]
[354329347,1740419447796,-151.638453,0.0002067,2]
[354329348,1740419447808,-151.0,0.00020671,2]
[354329349,1740419447817,-153.552267,0.00020671,2]
[354329350,1740419447827,-151.0,0.00020671,2]
[354329351,1740419447838,-151.0,0.00020671,2]
[354329352,1740419447847,-151.0,0.00020671,2]
[354329353,1740419447856,-151.0,0.00020671,2]
[354329354,1740419447866,-151.0,0.00020671,2]
[354329355,1740419447875,-151.0,0.00020671,2]
[354329356,1740419447884,-151.0,0.00020671,2]
[354329357,1740419447894,-239.211722,0.00020671,2]
[354329358,1740419447912,-184.185238,0.00020671,2]
[354329359,1740419447922,-184.185238,0.00020671,2]
[354329360,1740419447932,-184.185238,0.00020671,2]
[354329361,1740419447941,-184.185238,0.00020671,2]
[354329362,1740419447951,-184.185238,0.00020671,2]
[354329363,1740419447960,-184.185238,0.00020671,2]
[354329364,1740419447970,-184.185238,0.00020671,2]
[354329365,1740419447979,-184.185238,0.00020671,2]
[354329366,1740419447988,-184.185238,0.00020671,2]
[354329367,1740419447998,-184.185238,0.00020671,2]
[354329368,1740419448008,-744.129612,0.00020671,2]
[354329369,1740419448018,-744.129612,0.00020671,2]
[354329370,1740419448027,-744.129612,0.00020671,2]
[354329371,1740419448036,-744.129612,0.00020671,2]
[354329372,1740419448046,-744.129612,0.00020671,2]
[354329373,1740419448056,-151.835246,0.00020671,2]
[354329374,1740419448065,-151.0,0.00020671,2]
[354329375,1740419448074,-151.0,0.00020671,2]
[354329376,1740419448083,-151.0,0.00020671,2]
[354329377,1740419448093,-151.0,0.00020671,2]
[354329378,1740419448103,-151.0,0.00020671,2]
[354329379,1740419448112,-151.0,0.00020671,2]
[354329380,1740419448122,-151.0,0.00020671,2]
[354329381,1740419448131,-151.0,0.00020671,2]
[354329382,1740419448141,-151.0,0.00020671,2]
[354329383,1740419448150,-151.0,0.00020671,2]
[354329384,1740419448160,-151.0,0.00020671,2]
[354329385,1740419448170,-229.613081,0.00020671,2]
[354329386,1740419448181,-229.613081,0.00020671,2]
[354329387,1740419448191,-229.613081,0.00020671,2]
[354329388,1740419448203,-229.613081,0.00020671,2]
[354329389,1740419448213,-229.613081,0.00020671,2]
[354329390,1740419448223,-229.613081,0.00020671,2]
[354329391,1740419448232,-229.613081,0.00020671,2]
[354329392,1740419448242,-229.613081,0.00020671,2]
[354329393,1740419448251,-229.613081,0.00020671,2]
[354329394,1740419448261,-229.613081,0.00020671,2]
[354329395,1740419448270,-171.8349,0.00020671,2]
[354329396,1740419448279,-171.8349,0.00020671,2]
[354329397,1740419448288,-171.8349,0.00020671,2]
[354329398,1740419448297,-171.8349,0.00020671,2]
[354329399,1740419448307,-171.8349,0.00020671,2]
[354329400,1740419448316,-171.8349,0.00020671,2]
[354329401,1740419448326,-171.8349,0.00020671,2]
[354329402,1740419448335,-171.8349,0.00020671,2]
[354329403,1740419448345,-171.8349,0.00020671,2]
[354329404,1740419448354,-171.8349,0.00020671,2]
[354329405,1740419448363,-639.22611856,0.00020672,120]
[354329406,1740419448373,-1043.63325331,0.00020672,120]
[354329407,1740419448382,-538.62109723,0.00020672,120]
[354329408,1740419448392,-326.8118211,0.00020672,120]
[354329409,1740419448401,-170.35350161,0.00020672,120]
[354329410,1740419448410,-293.47077183,0.00020672,120]
[354329411,1740419448559,-1065.24000856,0.00020672,120]
[354329412,1740419448572,-294.61699924,0.00020672,120]
[354329413,1740419448581,-162.99948467,0.00020672,120]
[354329414,1740419448590,-248.60516483,0.00020672,120]
[354329415,1740419448599,-335.32839974,0.00020672,120]
[354329416,1740419448608,-409.03177556,0.00020672,120]
[354329417,1740419448617,-783.52376478,0.00020672,120]
[354329418,1740419448626,-192.43055249,0.00020672,120]
[354329419,1740419448637,-970.7784241,0.00020672,120]
[354329420,1740419448648,-185.01080913,0.00020672,120]
[354329421,1740419448657,-283.82043034,0.00020672,120]
[354329422,1740419448666,-325.68942218,0.00020672,120]
[354329423,1740419448677,-787.45608235,0.00020672,120]
[354329424,1740419448686,-209.7469807,0.00020672,120]
[354329425,1740419448695,-1029.39140478,0.00020672,2]
[354329426,1740419448704,-261.99643072,0.00020672,120]
[354329427,1740419448713,-288.7059982,0.00020672,120]
[354329428,1740419448725,-765.05468854,0.00020672,120]
[354329429,1740419448734,-187.16275777,0.00020672,120]
[354329430,1740419448743,-175.10523376,0.00020672,120]
[354329431,1740419448752,-239.50588931,0.00020672,120]
[354329432,1740419448761,-193.57183102,0.00020672,120]
[354329433,1740419448771,-439.70640822,0.00020672,120]
[354329434,1740419448780,-165.29718144,0.00020672,120]
[354329435,1740419448789,-543.24982158,0.00020672,120]
[354329436,1740419448798,-1000.06494625,0.00020672,120]
[354329437,1740419448807,-100000.0,0.00020672,7]
[354329438,1740419448816,-100000.0,0.00020672,14]
[354329439,1740419448825,-100000.0,0.00020672,21]
[354329440,1740419448834,-100000.0,0.00020672,28]
[354329441,1740419448843,-100000.0,0.00020672,30]
[354329442,1740419448853,-100000.0,0.00020672,31]
[354329443,1740419448862,-100000.0,0.00020672,32]
[354329444,1740419448871,-100000.0,0.00020672,33]
[354329445,1740419448881,-100000.0,0.00020672,34]
[354329446,1740419448890,-1000.0,0.00020672,30]
[354329447,1740419448900,-152.8898991,0.00020672,2]
[354329448,1740419448909,-151.0,0.00020672,2]
[354329449,1740419448918,-151.0,0.00020672,2]
[354329450,1740419448928,-163.488149,0.00020672,2]
[354329451,1740419448937,-151.0,0.00020672,2]
[354329452,1740419448946,-151.0,0.00020672,2]
[354329453,1740419448955,-151.0,0.00020672,2]
[354329454,1740419448965,-151.0,0.00020672,2]
[354329455,1740419448974,-151.0,0.00020672,2]
[354329456,1740419448985,-196.088219,0.00020672,2]
[354329457,1740419448995,-153.412818,0.00020672,2]
[354329458,1740419449006,-151.0,0.00020675,2]
[354329459,1740419449016,-151.0,0.00020675,2]
[354329460,1740419449028,-151.0,0.00020675,2]
[354329461,1740419449037,-151.0,0.00020675,2]
[354329462,1740419449046,-151.0,0.00020675,2]
[354329463,1740419449056,-151.0,0.00020675,2]
[354329464,1740419449065,-151.0,0.00020675,2]
[354329465,1740419449074,-151.0,0.00020675,2]
[354329466,1740419449084,-151.0,0.00020675,2]
[354329467,1740419449093,-151.0,0.00020675,2]
[354329468,1740419449102,-152.129028,0.00020675,2]
[354329469,1740419449111,-586.671707,0.00020675,2]
[354329470,1740419449121,-586.671707,0.00020675,2]
[354329471,1740419449130,-586.671707,0.00020675,2]
[354329472,1740419449139,-586.671707,0.00020675,2]
[354329473,1740419449149,-586.671707,0.00020675,2]
[354329474,1740419449158,-586.671707,0.00020675,2]
[354329475,1740419449168,-586.671707,0.00020675,2]
[354329476,1740419449179,-586.671707,0.00020675,2]
[354329477,1740419449188,-586.671707,0.00020675,2]
[354329478,1740419449198,-586.671707,0.00020675,2]
[354329479,1740419449207,-151.0,0.00020675,2]
[354329480,1740419449216,-152.640069,0.00020675,2]
[354329481,1740419449225,-152.401307,0.00020675,2]
[354329482,1740419449235,-151.0,0.00020675,2]
[354329483,1740419449244,-151.0,0.00020675,2]
[354329484,1740419449253,-151.0,0.00020675,2]
[354329485,1740419449262,-151.0,0.00020675,2]
[354329486,1740419449271,-151.0,0.00020675,2]
[354329487,1740419449280,-206.978381,0.00020675,2]
[354329488,1740419449290,-151.0,0.00020675,2]
[354329489,1740419449299,-151.0,0.00020675,2]
[354329490,1740419449308,-151.0,0.00020675,2]
[354329491,1740419449317,-151.0,0.00020675,2]
[354329492,1740419449326,-151.0,0.00020675,2]
[354329493,1740419449335,-187.359585,0.00020675,2]
[354329494,1740419449344,-187.359585,0.00020675,2]
[354329495,1740419449354,-187.359585,0.00020675,2]
[354329496,1740419449363,-187.359585,0.00020675,2]
[354329497,1740419449372,-187.359585,0.00020675,2]
[354329498,1740419449381,-187.359585,0.00020675,2]
[354329499,1740419449391,-187.359585,0.00020675,2]
[354329500,1740419449400,-187.359585,0.00020675,2]
[354329501,1740419449410,-187.359585,0.00020675,2]
[354329502,1740419449419,-187.359585,0.00020675,2]
[354329503,1740419449429,-151.0,0.00020675,2]
[354329504,1740419449438,-151.0,0.00020675,2]
[354329505,1740419449448,-151.0,0.00020675,2]
[354329506,1740419449458,-151.0,0.00020675,2]
[354329507,1740419449468,-151.0,0.00020675,2]
[354329508,1740419449478,-151.0,0.00020675,2]
[354329509,1740419449487,-151.0,0.00020675,2]
[354329510,1740419449497,-240.883023,0.00020675,2]
[354329511,1740419449507,-194.551977,0.00020675,2]
[354329512,1740419449516,-194.551977,0.00020675,2]
[354329513,1740419449525,-194.551977,0.00020675,2]
[354329514,1740419449534,-194.551977,0.00020675,2]
[354329515,1740419449543,-194.551977,0.00020675,2]
[354329516,1740419449553,-205.106864,0.00020675,2]
[354329517,1740419449562,-205.106864,0.00020675,2]
[354329518,1740419449572,-205.106864,0.00020675,2]
[354329519,1740419449580,-194.551977,0.00020675,2]
[354329520,1740419449590,-194.551977,0.00020675,2]
[354329521,1740419449599,-194.551977,0.00020675,2]
[354329522,1740419449608,-194.551977,0.00020675,2]
[354329523,1740419449617,-194.551977,0.00020675,2]
[354329524,1740419449627,-151.956858,0.00020675,2]
[354329525,1740419449638,-151.0,0.00020675,2]
[354329526,1740419449649,-151.0,0.00020675,2]
[354329527,1740419449658,-152.82972,0.00020675,2]
[354329528,1740419449667,-151.376158,0.00020675,2]
[354329529,1740419449677,-151.0,0.00020675,2]
[354329530,1740419449686,-151.0,0.00020675,2]
[354329531,1740419449695,-151.243359,0.00020675,2]
[354329532,1740419449705,-151.0,0.00020675,2]
[354329533,1740419449714,-151.0,0.00020675,2]
[354329534,1740419449723,-151.0,0.00020675,2]
[354329535,1740419449733,-151.0,0.00020675,2]
[354329536,1740419449742,-151.0,0.00020675,2]
[354329537,1740419449751,-151.0,0.00020675,2]
[354329538,1740419449760,-151.0,0.00020675,2]
[354329539,1740419449769,-160.224883,0.00020675,2]
[354329540,1740419449779,-151.0,0.00020675,2]
[354329541,1740419449788,-151.861828,0.00020675,2]
[354329542,1740419449797,-151.0,0.00020675,2]
[354329543,1740419449806,-151.0,0.00020675,2]
[354329544,1740419449815,-151.0,0.00020675,2]
[354329545,1740419449824,-151.0,0.00020675,2]
[354329546,1740419449833,-151.0,0.00020675,2]
[354329547,1740419449843,-151.0,0.00020675,2]
[354329548,1740419449852,-151.0,0.00020675,2]
[354329549,1740419449861,-151.0,0.00020675,2]
[354329550,1740419449870,-151.0,0.00020675,2]
[354329551,1740419449879,-151.0,0.00020675,2]
[354329552,1740419449888,-151.0,0.00020675,2]
[354329553,1740419449897,-312.393513,0.00020675,2]
[354329554,1740419449906,-312.393513,0.00020675,2]
[354329555,1740419449915,-312.393513,0.00020675,2]
[354329556,1740419449924,-312.393513,0.00020675,2]
[354329557,1740419449933,-312.393513,0.00020675,2]
[354329558,1740419449942,-312.393513,0.00020675,2]
[354329559,1740419449951,-312.393513,0.00020675,2]
[354329560,1740419449960,-312.393513,0.00020675,2]
[354329561,1740419449970,-312.393513,0.00020675,2]
[354329562,1740419449979,-312.393513,0.00020675,2]
[354329563,1740419449988,-151.0,0.00020675,2]
[354329564,1740419449998,-151.769202,0.00020675,2]
[354329565,1740419450007,-176.463417,0.00020675,2]
[354329566,1740419450016,-164.410286,0.00020675,2]
[354329567,1740419450025,-176.463417,0.00020675,2]
[354329568,1740419450034,-164.410286,0.00020675,2]
[354329569,1740419450043,-151.0,0.00020682,2]
[354329570,1740419450052,-151.0,0.00020682,2]
[354329571,1740419450062,-151.0,0.00020682,2]
[354329572,1740419450071,-151.0,0.00020682,2]
[354329573,1740419450080,-151.0,0.00020682,2]
[354329574,1740419450089,-151.0,0.00020682,2]
[354329575,1740419450098,-176.463417,0.00020682,2]